Cogmind - Beta 17 @@@ ROGUE MODE // 2026.06.23 @ 01:08:28 Player: FL-IST Result: Destroyed by G-47 Trooper with Backup Laser III Performance ------------- Evolutions (2) 1000 Regions Visited (5) 1000 Robots Destroyed (34) 170 Value Destroyed (650) 650 Prototype IDs (24) 480 Alien Tech Used (0) 0 Bonus (7850) 7850 TOTAL SCORE: 11150 Bonus ------- Prayed to X0-1V1 5000 Major X0-1V1 Interference 2550 Aligned with FarCom 300 Cogmind --------- Core Integrity 0/600 Matter 107/300 Energy 100/100 System Corruption 0% Temperature Cool (20) Movement Hovering (80) Location -8/Materials Parts ------- > --- POWER (2) -------- (None) > --- PROPULSION (4) --- Combat Airjet > --- UTILITY (3) ------ Medium Storage Unit > --- WEAPON (3) ------- (None) > --- INVENTORY (10) --- Seismic Detector Seismic Detector Modified TNC Peak State ------------ > --- POWER ------------ Improved Ion Engine Light Nuclear Core > --- PROPULSION ------- Compact Wheel > --- UTILITY ---------- Small Storage Unit X0-1V1's Piety Tracker > --- WEAPON ----------- Beam Cannon Beam Cannon Maul > --- INVENTORY -------- Combat Airjet Combat Airjet Seismic Detector Seismic Detector Small Laser Mini Grenade Launcher [Rating: 25] Favorites ----------- Power Ion Engine Engine Ion Engine Power Core Light Nuclear Core Propulsion Compact Wheel Treads Light Treads Wheel Compact Wheel Hover Unit Combat Airjet Utility Small Storage Unit Device Seismic Detector Storage Small Storage Unit Weapon Assault Rifle Energy Gun Medium Laser Energy Cannon Beam Cannon Ballistic Gun Assault Rifle Ballistic Cannon Light Cannon Launcher Mini Grenade Launcher Impact Weapon Maul Slashing Weapon Greatsword Build | -11 -10 -10 -10 -9 -8 ------- Run | Yrd Mat Min Exi Min Mat Slots Evolved 4 | . . . . . 4 Power . | . . . . . . Propulsion 3 | . . . . . 3 Utility 1 | . . . . . 1 Weapon . | . . . . . . Parts Attached 31 | 8 7 6 1 1 8 Power 7 | 2 2 3 . . . Engine 5 | 2 2 1 . . . Core 2 | . . 2 . . . Reactor . | . . . . . . Propulsion 8 | 2 2 1 . . 3 Treads 2 | 1 1 . . . . Leg . | . . . . . . Wheel 3 | 1 1 1 . . . Hover 3 | . . . . . 3 Flight . | . . . . . . Utility 4 | 2 1 . 1 . . Device 2 | 1 1 . . . . Storage 2 | 1 . . 1 . . Processor . | . . . . . . Hackware . | . . . . . . Protection . | . . . . . . Artifact . | . . . . . . Weapon 12 | 2 2 2 . 1 5 Energy Gun 2 | 1 . . . 1 . Energy Cannon 3 | . 2 1 . . . Ballistic Gun 1 | 1 . . . . . Ballistic Cannon 1 | . . 1 . . . Launcher 3 | . . . . . 3 Special Weapon . | . . . . . . Impact Weapon . | . . . . . . Slashing Weapon 2 | . . . . . 2 Piercing Weapon . | . . . . . . Special Melee Weapon . | . . . . . . Unidentified Prototypes 1 | . 1 . . . . Parts Lost 21 | 1 2 2 . 2 14 Power 5 | 1 1 1 . 1 1 Propulsion 5 | . 1 . . . 4 Utility 1 | . . . . . 1 Weapon 10 | . . 1 . 1 8 Highest Loss Streak 14 | 1 1 2 . 2 14 To Critical Strikes . | . . . . . . Average Backups 5 | 5 7 6 7 8 5 Power . | . . . . . . Propulsion 2 | 2 3 2 4 4 1 Utility 1 | . 1 2 2 3 3 Weapon 1 | 1 2 2 1 1 1 Tool/Special . | . . . . . . Unused Backups 3 | . . . 1 . 2 Power . | . . . . . . Propulsion . | . . . . . . Utility 2 | . . . . . 2 Weapon 1 | . . . 1 . . Tool/Special . | . . . . . . Average Slot Usage (%) 91 | . 98 97 100 86 41 Engine 9 | . 13 10 12 . . Core 7 | . . 10 12 12 3 Treads 3 | . 13 . . . . Wheel 11 | . 13 12 12 12 6 Device 11 | . 13 12 12 12 4 Storage 12 | . 13 12 12 12 8 Energy Gun 2 | . 1 . . 10 3 Energy Cannon 21 | . 25 25 25 12 3 Ballistic Cannon 5 | . . 6 12 12 3 Impact Weapon 2 | . . 6 . . . Peak Build Rating 25 | 8 20 25 25 25 24 Average Rating 11 | 6 14 23 24 22 17 On Entrance 16 | . 8 20 24 25 23 Avg Prop Armor Cover (%) 4 | 3 8 . . . . Naked Turns . | . . . . . . Heaviest Build 32 | 15 15 27 32 23 23 Greatest Support 32 | 20 20 16 10 10 32 Greatest Overweight (x) 3 | . 1 2 3 2 1 Average Overweight (x) . | . . 1 2 2 . Largest Inventory Capacity 10 | 8 8 8 10 10 10 Average Capacity 8 | 7 8 8 8 10 10 Most Carried 9 | 8 8 8 8 9 8 Average Carried 5 | 5 7 6 7 8 6 Final Capacity 10 | 8 8 8 10 10 10 Final Carried 9 | 8 7 8 8 9 3 Class Distribution -------------------- 83% | Mutant 10% | Gunner 5% | Skirmisher Dominant Class ---------------- Mutant | -10/Materials Gunner | -10/Mines Gunner | -10/Exiles Skirmisher | -9/Mines Mutant | -8/Materials Resources | -11 -10 -10 -10 -9 -8 ----------- Run | Yrd Mat Min Exi Min Mat Matter Collected 825 | 386 66 220 . 153 . Remotely . | . . . . . . Salvage Created 1055 | 176 226 356 . 219 78 Parts 65 | 12 18 22 . 10 3 Haulers Intercepted . | . . . . . . Recyclers Shooed 3 | . 2 . . . 1 Parts Field Recycled . | . . . . . . Retrieved Matter . | . . . . . . Parts Self-Destructed . | . . . . . . Prevented . | . . . . . . Parts Restored . | . . . . . . Kills | -11 -10 -10 -10 -9 -8 ------- Run | Yrd Mat Min Exi Min Mat Combat Hostiles Destroyed 35 | 9 12 9 . 3 2 Melee 1 | . . . . . 1 Guns 9 | 9 . . . . . Cannons 24 | . 12 9 . 3 . AOE 1 | . . . . . 1 Classes Destroyed 8 | 2 2 2 . 2 . Worker 1 | . . . . 1 . Builder 1 | . . 1 . . . Tunneler 5 | 3 . 2 . . . Recycler 1 | . . . . 1 . Swarmer 15 | . 11 4 . . . Grunt 10 | . 1 4 . 3 2 Sentry 1 | . . 1 . . . Assembled 9 | 9 . . . . . Best Kill Streak 5 | 5 3 4 . 3 1 Combat Bots Only 5 | 5 3 4 . 3 1 Max Kills in Single Turn 2 | 1 2 1 . 1 1 Gunslinging . | . . . . . . Exploded 1 | . . . . . 1 Melee 1 | . . . . . 1 Uniques/NPCs Destroyed . | . . . . . . Combat | -11 -10 -10 -10 -9 -8 -------- Run | Yrd Mat Min Exi Min Mat Hostile Shots Fired 287 | 34 61 48 . 13 131 Missed 69 | 6 15 14 . 2 32 Hits 218 | 28 46 34 . 11 99 Melee 1 | 1 . . . . . Projectile 217 | 27 46 34 . 11 99 Critical Strikes 3 | . 1 . . 1 1 Damage Taken 2870 | 378 397 374 . 153 1568 Core 905 | 100 106 79 . 11 609 Absorbed by Shields . | . . . . . . Regen/Repaired (Parts) 5 | . . . . . 5 Core Remaining (%) 65 | 60 . . . 70 . Volleys Fired 113 | 37 28 31 . 8 9 Largest 3 | 2 2 3 . 3 3 Hottest 150 | 70 120 150 . 150 130 Shots Fired 244 | 74 55 76 . 21 18 Gun 82 | 74 . . . 2 6 Cannon 156 | . 55 76 . 19 6 Launcher 6 | . . . . . 6 Special . | . . . . . . Kinetic 61 | 37 . 10 . 10 4 Thermal 177 | 37 55 66 . 11 8 Explosive 6 | . . . . . 6 Electromagnetic . | . . . . . . Robot Hit Streak 11 | 5 5 6 . 11 4 Robot Miss Streak 7 | 4 7 5 . 1 4 Penetration Max . | . . . . . . Secondary Targets . | . . . . . . Shots Hit Robots 124 | 38 24 33 . 15 14 Core Hits 62 | 19 11 14 . 7 11 Critical Kills . | . . . . . . Critical Parts Destroyed . | . . . . . . Critical Strikes 3 | . . . . . 3 Sever 3 | . . . . . 3 Melee Attacks 7 | . . . . . 7 Impact . | . . . . . . Slashing 7 | . . . . . 7 Piercing . | . . . . . . Sneak Attacks . | . . . . . . Combat Hostiles . | . . . . . . Follow-up Attacks . | . . . . . . Damage Inflicted 2561 | 481 470 594 . 247 769 Guns 522 | 481 . . . 20 21 Cannons 1308 | . 469 594 . 227 18 Explosions 415 | . . . . . 415 Melee 315 | . . . . . 315 Ramming 1 | . 1 . . . . Kinetic 423 | 195 . 88 . 140 . Thermal 1407 | 286 469 506 . 107 39 Explosive 415 | . . . . . 415 Electromagnetic . | . . . . . . Impact . | . . . . . . Slashing 315 | . . . . . 315 Piercing . | . . . . . . Highest Corruption 18 | . 2 18 18 18 . Average Corruption 12 | . 2 8 18 18 . Corruption Purged . | . . . . . . Corruption Blocked . | . . . . . . Effects 36 | . 1 15 10 10 . Message Errors 8 | . . 3 2 3 . Matter Fused 6 | . . 3 1 2 . Heat Flow Errors 4 | . . 2 1 1 . Energy Discharges 7 | . . 2 3 2 . Parts Fused 1 | . . . 1 . . Data Loss (minor) 1 | . . 1 . . . Data Loss (major) 2 | . . . 2 . . Misfires 6 | . . 4 . 2 . Weapon Failures 1 | . 1 . . . . Overload Shots . | . . . . . . Overflow Damage 56 | . 11 34 . . 11 Projectiles 45 | . 11 34 . . . Explosions 2 | . . . . . 2 Melee 9 | . . . . . 9 Knockbacks 1 | . . . . 1 . Impact . | . . . . . . Kinetic 1 | . . . . 1 . Secondary . | . . . . . . Self-Inflicted Damage . | . . . . . . Shots . | . . . . . . Rammed 2 | . 2 . . . . Targets Rammed 2 | . 2 . . . . Kicked . | . . . . . . Crushed . | . . . . . . Highest Temperature 460 | 148 460 194 111 90 274 Average Temperature 115 | 46 187 75 69 38 133 Received Heat Transfer 787 | 40 12 144 . 105 486 Effects 5 | . 5 . . . . Shutdowns 1 | . 1 . . . . Matter Decay 1 | . 1 . . . . Damage (minor) 1 | . 1 . . . . Damage (major) 2 | . 2 . . . . Siege Activations . | . . . . . . Martial Activations . | . . . . . . Shielding Activations . | . . . . . . Robots Disrupted . | . . . . . . Combat Hostiles . | . . . . . . Robots Corrupted . | . . . . . . Combat Hostiles . | . . . . . . Parts Fried . | . . . . . . Impact Corruptions . | . . . . . . Robots Melted . | . . . . . . Combat Hostiles . | . . . . . . Parts Melted 4 | . 1 2 . 1 . Heat Transferred 3245 | 851 999 1073 . 235 87 Parts Sabotaged . | . . . . . . Parts Stolen . | . . . . . . Parts Stripped . | . . . . . . Power Chain Reactions . | . . . . . . Alert | -11 -10 -10 -10 -9 -8 ------- Run | Yrd Mat Min Exi Min Mat Maximum Alert Level 1 | . 1 . . . . Low Security (%) 99 | 100 95 100 . 100 100 Level 1 . | . 4 . . . . Level 2 . | . . . . . . Level 3 . | . . . . . . Level 4 . | . . . . . . Level 5 . | . . . . . . High Security . | . . . . . . Max Security . | . . . . . . Peak Influence 231 | 10 231 130 . 60 30 Initial 90 | . . 90 . . . Average 12 | . 58 53 . 15 3 Influence Increases 806 | 15 423 215 . 80 73 Destroy 0b10 Robot/C 520 | . 240 180 . 60 40 Destroy 0b10 Robot/NC 40 | 15 . 15 . 10 . Destroy Leader 70 | . 30 20 . 10 10 Successful Hack 10 | . 5 . . . 5 Select Force Hacks 30 | . 30 . . . . Destroy Structure 19 | . 1 . . . 18 Lose Combat Pursuer 15 | . 15 . . . . Miscellaneous 102 | . 102 . . . . Influence Decreases 786 | 15 192 374 72 80 53 Entered New Map 213 | . . 141 72 . . Time Decay 485 | 15 172 213 . 70 15 Lost Part 88 | . 20 20 . 10 38 Squads Dispatched 6 | . 2 1 . 1 2 Investigation 4 | . 1 1 . 1 1 Extermination . | . . . . . . Reinforcement 2 | . 1 . . . 1 Assault . | . . . . . . Garrison . | . . . . . . Intercept . | . . . . . . Searches Triggered . | . . . . . . Construction Impeded . | . . . . . . Haulers Reinforced . | . . . . . . Active Scanning Responses . | . . . . . . Cargo Convoy Interrupts . | . . . . . . Stealth | -11 -10 -10 -10 -9 -8 --------- Run | Yrd Mat Min Exi Min Mat Distress Signals 2 | . 1 . . . 1 Communications Jammed . | . . . . . . Distress Signals . | . . . . . . Times Spotted 51 | 10 18 10 . 3 10 Peak Tracking Total 7 | 3 6 5 . 3 7 Tactical Retreats 4 | 3 1 . . . . Traps | -11 -10 -10 -10 -9 -8 ------- Run | Yrd Mat Min Exi Min Mat Traps Triggered 1 | . 1 . . . . Indirectly . | . . . . . . Trap Hack Attempts . | . . . . . . Triggered . | . . . . . . Disarmed . | . . . . . . Reprogrammed . | . . . . . . Reused . | . . . . . . Traps Extracted . | . . . . . . Installed . | . . . . . . Triggered . | . . . . . . Machines | -11 -10 -10 -10 -9 -8 ---------- Run | Yrd Mat Min Exi Min Mat Machines Disabled . | . . . . . . Max in Single Turn . | . . . . . . Machines Repaired . | . . . . . . Machines Dismantled . | . . . . . . Machines Sabotaged . | . . . . . . Overloaded Fab Kills . | . . . . . . Hacking | -11 -10 -10 -10 -9 -8 --------- Run | Yrd Mat Min Exi Min Mat Machines Accessed 9 | . 3 1 2 1 2 Terminals 4 | . 2 . . 1 1 Fabricators . | . . . . . . Repair Stations 1 | . . . . . 1 Recycling Units 1 | . 1 . . . . Scanalyzers . | . . . . . . Garrison Access . | . . . . . . Total Hacks 20 | . 7 1 5 3 4 Successful 15 | . 5 1 5 1 3 Failed 5 | . 2 . . 2 1 Catastrophic 1 | . . . . 1 . Database Lockouts . | . . . . . . Manual 16 | . 9 . 1 2 4 Terminals 10 | . 4 . . 3 3 Fabricators . | . . . . . . Repair Stations 1 | . . . . . 1 Recycling Units 3 | . 3 . . . . Scanalyzers . | . . . . . . Garrison Access . | . . . . . . Terminal Hacks 6 | . . 1 5 . . Record 4 | . . . 4 . . Open Door 1 | . . 1 . . . Proto ID Catalog 1 | . . . 1 . . Fabricator Hacks . | . . . . . . Repair Station Hacks . | . . . . . . Recycling Unit Hacks 1 | . 1 . . . . Retrieve Components 1 | . 1 . . . . Scanalyzer . | . . . . . . Garrison Access Hacks . | . . . . . . Unauthorized Hacks 8 | . 4 . . 1 3 Terminals 6 | . 3 . . 1 2 Botnet 2 | . 1 . . . 1 Skim 4 | . 2 . . 1 1 Fabricators . | . . . . . . Repair Stations 1 | . . . . . 1 Patch 1 | . . . . . 1 Recycling Units 1 | . 1 . . . . Tunnel 1 | . 1 . . . . Scanalyzers . | . . . . . . Garrison Access . | . . . . . . Data Cores Recovered . | . . . . . . Used . | . . . . . . Hacking Detections 4 | . 2 . . 1 1 Full Trace Events 1 | . . . . 1 . Feedback Events . | . . . . . . Feedback Blocked . | . . . . . . Robot Schematics Acquired . | . . . . . . Robots Built . | . . . . . . Authchips . | . . . . . . Time . | . . . . . . Total Robot Build Rating . | . . . . . . Part Schematics Acquired . | . . . . . . Parts Built . | . . . . . . Authchips . | . . . . . . Time . | . . . . . . Total Part Build Rating . | . . . . . . Part Studies Acquired . | . . . . . . Parts Repaired . | . . . . . . Time . | . . . . . . Parts Recycled . | . . . . . . Recycled Matter . | . . . . . . Retrieved Matter . | . . . . . . Retrieved Components 8 | . 8 . . . . Parts Scanalyzed . | . . . . . . Part Schematics Acquired . | . . . . . . Parts Damaged . | . . . . . . Bothacking | -11 -10 -10 -10 -9 -8 ------------ Run | Yrd Mat Min Exi Min Mat Used RIF Installer . | . . . . . . Robots Hacked . | . . . . . . Non-combat . | . . . . . . Combat . | . . . . . . Robot Hacks Applied . | . . . . . . Relay Couplers Released . | . . . . . . Fabnet Peak Effective % . | . . . . . . Robots Rewired . | . . . . . . Allies Hacked . | . . . . . . Hacks Repelled . | . . . . . . Allies | -11 -10 -10 -10 -9 -8 -------- Run | Yrd Mat Min Exi Min Mat Total Allies . | . . . . . . Largest Group . | . . . . . . Highest-Rated Group . | . . . . . . Highest-Rated Ally . | . . . . . . Total Orders . | . . . . . . Ally Attacks . | . . . . . . Total Damage . | . . . . . . Kills . | . . . . . . Allies Corrupted . | . . . . . . Allies Melted . | . . . . . . X0-1V1 Amusement Gains 56 | . 6 . . . 50 Good Acts 9 | . 6 3 . . . Bad Acts 25 | . 6 14 . 1 4 Intel | -11 -10 -10 -10 -9 -8 ------- Run | Yrd Mat Min Exi Min Mat Active Infowar (turns) 3733 | 3520 213 . . . . Seismic 3733 | 3520 213 . . . . Robot Analysis Total . | . . . . . . Derelict Logs Recovered 3 | . . 2 . 1 . Drone Launches . | . . . . . . Drone Recoveries . | . . . . . . Exploration | -11 -10 -10 -10 -9 -8 ------------- Run | Yrd Mat Min Exi Min Mat Turns Passed 5329 | 3624 466 613 257 232 137 Spaces Moved 1811 | 654 224 441 228 185 79 Core 6 | 6 . . . . . Treads 732 | 642 90 . . . . Legs . | . . . . . . Wheels 1031 | 6 134 441 228 185 37 Hover 42 | . . . . . 42 Flight . | . . . . . . Fastest Speed 50 | 50 95 100 110 110 66 Average Speed 128 | 158 122 111 111 110 87 Slowest Speed 160 | 160 160 115 125 110 150 Overloaded Moves . | . . . . . . Propulsion Burnouts . | . . . . . . Robots Hopped . | . . . . . . Potential Cave-ins . | . . . . . . Cave-ins Triggered . | . . . . . . Exploration Rate (%) 53 | 54 52 81 60 62 14 Regions Visited 5 Branch Regions 3 Pre-discovered Areas 3 | . 1 1 1 . . Known Exits Taken 1 | . . 1 . . . Unknown Exits Taken 4 | 1 1 . 1 1 . Scrap Searched 1 | . . 1 . . . Spaces Dug . | . . . . . . Terrain Destroyed 16 | . . . . . 16 Melee . | . . . . . . Projectile . | . . . . . . AOE 16 | . . . . . 16 Terrain Rammed . | . . . . . . Walls Destroyed . | . . . . . . Machines Disabled . | . . . . . . Actions | -11 -10 -10 -10 -9 -8 --------- Run | Yrd Mat Min Exi Min Mat Total 4561 | 3164 358 495 231 196 117 Wait 2579 | 2458 91 17 . 2 11 Move 1806 | 653 223 440 227 184 79 Hop . | . . . . . . Pick Up 15 | 8 2 1 1 1 2 Fast Attach 14 | 8 1 3 . 1 1 Attach 10 | . 1 1 . . 8 Detach . | . . . . . . Swap 9 | . 6 2 1 . . Drop 6 | . 4 . 2 . . Fire 113 | 37 28 31 . 8 9 Melee 7 | . . . . . 7 Ram . | . . . . . . Kick . | . . . . . . Crush 2 | . 2 . . . . Escape Stasis . | . . . . . . Rewire . | . . . . . . Trap . | . . . . . . Miscellaneous . | . . . . . . Route ------- -11/Scrapyard -10/Materials (discovered 4 exits: [*Mat] / *Min x2 / [*Sub]) -10/Mines (discovered 3 exits: [*Mat x2] / *Exi) -10/Exiles -9/Mines (discovered 2 exits: *Mat x2) -8/Materials (discovered 1 exit: Fac) History --------- Turn | Location | Event 3 | -11/Scrapyard | Discovered new exit (range 15) 2783 | -11/Scrapyard | Assembled infested the area 3625 | -11/Scrapyard | Entered Materials 3630 | -10/Materials | Build established: Mutant 3804 | -10/Materials | Discovered new exit (range 5) 3837 | -10/Materials | Prayed at D.C.S.S. Altar Unit 3928 | -10/Materials | Discovered new exit (range 14) 3989 | -10/Materials | Core integrity fell below 50% 4053 | -10/Materials | Discovered new exit (range 11) 4065 | -10/Materials | Core integrity permanently improved by X0-1V1 (+200) 4069 | -10/Materials | X0-1V1 added 0b10 threat records associated with you (minor) 4070 | -10/Materials | X0-1V1 mutated your Propulsion slot to Power slot 4072 | -10/Materials | Weapon slot count permanently improved by X0-1V1 (+1) 4078 | -10/Materials | Heat dissipation permanently improved by X0-1V1 (+30) 4081 | -10/Materials | X0-1V1 sent hostile S-10 Pest (x5) 4089 | -10/Materials | Discovered new exit (range 1) 4089 | -10/Materials | X0-1V1 whisked you away to safety 4091 | -10/Materials | Entered Mines 4104 | -10/Mines | Identified exit to Exiles 4104 | -10/Mines | X0-1V1 revealed exit location to -10/Exiles 4105 | -10/Mines | Learned Materials trap positions 4109 | -10/Mines | X0-1V1 activates XOMVISION 4110 | -10/Mines | X0-1V1 sent you into danger 4127 | -10/Mines | Core integrity restored by X0-1V1 (+57) 4173 | -10/Mines | Discovered new exit (range 9) 4417 | -10/Mines | Learned location of Zion (-6) 4421 | -10/Mines | Discovered new exit (range 5) 4443 | -10/Mines | System corruption reached 10% 4640 | -10/Mines | Met a Derelict who couldn't figure out how to use a Trap Extractor 4661 | -10/Mines | X0-1V1 sent hostile S-10 Pest (x5) 4678 | -10/Mines | Build established: Gunner 4699 | -10/Mines | Deemed a non-threat by the Exiles lab entrance 4704 | -10/Mines | Entered Exiles 4732 | -10/Exiles | Met 8R-AWN 4751 | -10/Exiles | Met EX-HEX 4781 | -10/Exiles | Met EX-BIN 4795 | -10/Exiles | Aligned with FarCom system 4796 | -10/Exiles | Given EX-Vault access code 4821 | -10/Exiles | Opened EX-Vault 4829 | -10/Exiles | Found Modified TNC 4852 | -10/Exiles | Warned to stay clear of 0b10 Research branches 4868 | -10/Exiles | Exiles lab attacked by MAIN.C 4947 | -10/Exiles | Discovered new exit (range 14) 4961 | -10/Exiles | Left Exiles lab with Modified TNC 4961 | -10/Exiles | Entered Mines 4999 | -9/Mines | Discovered new exit (range 5) 5022 | -9/Mines | Learned location of 1 exit from Materials 5119 | -9/Mines | Received a Rocket Launcher from a helpful Derelict 5135 | -9/Mines | Discovered new exit (range 15) 5193 | -9/Mines | Entered Materials 5193 | -8/Materials | Evolved 4 slots: Propulsion x3, Utility x1 5194 | -8/Materials | Identified exit to Factory 5195 | -8/Materials | Loaded intel: 12 trap records 5241 | -8/Materials | X0-1V1 sent you into danger 5269 | -8/Materials | Core integrity fell below 50% 5319 | -8/Materials | Core integrity fell below 20% 5330 | -8/Materials | Destroyed by G-47 Trooper with Backup Laser III Last Messages --------------- 05298_ K-01 Serf collects debris. 05299_ G-50 Soldier Carbon-fiber Leg severed. 05301_ K-01 Serf cleans the Terminal. 05303_ Slug penetrates Wall. 05304_ K-01 Serf cleans the Terminal. 05306_ Slug penetrates Door. 05309_ Penetrated by Slug. 05311_ Destroyed Adv. Heat Sink. 05312_ Slug penetrates Wall. 05312_ Greatsword destroyed. 05315_ G-50 Soldier Lgt. Angular Momentum Engine severed. 05315_ Penetrated by Slug. 05318_ G-50 Soldier destroyed. 05318_ Penetrated by Slug. 05321_ Slug penetrates Wall. 05324_ G-47 Trooper Aluminum Leg severed. 05324_ Slug penetrates Wall. 05324_ Greatsword destroyed. 05329_ R-06 Scavenger collects Aluminum Leg. 05330_ X0-1V1 chuckles heartily! Map ----- +----------------------------------------------------+ | ?????????????????????????????????????????????????? | | ?????????????????????????????????????????????????? | | ?????????????????????????????????????????????????? | | ?????????????????????????????????????????????????? | | ?????????????????????????????????????????????????? | | ?????????????????????????????????????????????????? | | ?????????????????????????????????????????????????? | | ?????????????????????????????????????????????????? | | ?????????????????????????????????????????????????? | | ?????????????????????????????????????????????????? | | ?????????????????????????????????????????????????? | | ?????????????????????????????????????????????????? | | ?????????????????????????????????????????????????? | | ?? #?????????????????????????????????????????????? | | ?" #?????????????????????????????????????????????? | | ?" #??#####??????????????????????????????????????? | | ? ???# ?????????????????????????????????????? | | #+#???# " "????###########??????????????????????? | | #???# T """??# ^ ^ ^ #??????????????????????? | | #???# " ""???#^ ^ #??????????????????????? | | #?### ???# [ ^ !???????????????????????? | | #### ##???# ??????#############??????? | | ######+##+#???????#"""# #??????? | | r #########"T"# #??????? | | [ ######## Y w #??????? | | # # g @ #####+######??????? | | # #= # #???????? | | " h ; ; #???????? | | # # #*% ###+##+## #???????? | | # #= ## # ! #???????? | | [ ## /!!!!# # ## # #???????? | | ##/ !!!!######## + " " # #???????? | | #########??????###### "R" # #???????? | | """ #???????????????????# """ # #???????? | | """ #???????????????????# ###########???????? | | """ #???????????????????########?????????????????? | | #####????????????????????????????????????????????? | | | | | | | | | | | | | | | | | | | | | | | | | | | +----------------------------------------------------+ Best States ------------- Heat Dissipation 61 Energy Generation 21 Energy Capacity 325 Matter Stores 300 Matter Capacity 300 Sight Range 16 Terrain Scan Density 10 Evasion (%) 49 Recoil Reduction 1 Item Schematics ----------------- None Robot Schematics ------------------ None Fabricated ------------ Nothing Repaired ---------- Nothing Studied --------- None Alien Tech Used ----------------- None Achievements -------------- Chaos Is Inevitable Challenges ------------ None Game ------ Seed IntegratedPulsarRecalibrator Manual? 0 Play Time 00:20:28 Cumulative 418.8 hours Start 2026.06.23 @ 00:44:57 End 2026.06.23 @ 01:08:28 Sessions 1 Manual Loads 0 Difficulty Rogue Special Mode None Game No. 322 Rogue 322 Adventurer 0 Explorer 0 Win Type - Total 27 Types 15/0/8/2/0/0/0/1/1/0 Lore% 89 Gallery% 80 Achievement% 71 Wizard Run 0 Options --------- Layout 1 ASCII 0 Keyboard 0 Movement Numpad Keybinds 0 Fullscreen 1 Font 32/SmallcapsGlow Map View 77x35 Zoom Use 0% Tactical HUD 1 Map Filters NONE Filters NONE Steam 1 RUN: 2bdcf562-f807-4ab2-bf4f-4bbe95545278